lending/lending_fUSD_20251116
["ID","MTS","AMOUNT","RATE_DAILY","PERIOD"]
[394085302,1763256644620,-300.0,0.00017736,2]
[394085303,1763256644629,-300.0,0.0001774,2]
[394085304,1763256644646,-150.0,0.00017741,2]
[394085305,1763256644656,-300.0,0.00017744,2]
[394085306,1763256644666,-300.0,0.00017749,2]
[394085307,1763256644676,-300.0,0.0001775,2]
[394085308,1763256644685,-150.0,0.00017753,2]
[394085309,1763256644695,-300.0,0.00017753,2]
[394085310,1763256644704,-300.0,0.00017755,2]
[394085311,1763256644714,-300.0,0.00017757,2]
[394085312,1763256644723,-1000.0,0.00017758,2]
[394085313,1763256644733,-300.0,0.0001776,2]
[394085314,1763256644742,-300.0,0.00017764,2]
[394085315,1763256644751,-150.0,0.00017765,2]
[394085316,1763256644761,-150.0,0.00017765,2]
[394085317,1763256644770,-1000.0,0.0001777,2]
[394085318,1763256644780,-300.0,0.00017771,2]
[394085319,1763256644789,-300.0,0.00017772,2]
[394085320,1763256644799,-150.0,0.00017773,2]
[394085321,1763256644809,-300.0,0.00017774,2]
[394085322,1763256644818,-150.0,0.00017776,2]
[394085323,1763256644827,-4641.0,0.0001778,2]
[394085324,1763256644836,-300.0,0.00017785,2]
[394085325,1763256644846,-1000.0,0.00017786,2]
[394085326,1763256644855,-300.0,0.00017787,2]
[394085327,1763256644865,-300.0,0.00017792,2]
[394085328,1763256644874,-1000.0,0.00017792,2]
[394085329,1763256644884,-150.0,0.00017794,2]
[394085330,1763256644893,-300.0,0.00017794,2]
[394085331,1763256644902,-300.0,0.00017797,2]
[394085332,1763256644912,-1000.0,0.000178,2]
[394085333,1763256644922,-1800.0,0.000178,6]
[394085334,1763256644932,-300.0,0.00017801,2]
[394085335,1763256644941,-164.18539368,0.00017808,2]
[394085336,1763256644951,-300.0,0.00017811,2]
[394085337,1763256644960,-300.0,0.00017814,2]
[394085338,1763256644970,-300.0,0.00017816,2]
[394085339,1763256644980,-300.0,0.00017827,2]
[394085340,1763256644989,-1000.0,0.00017827,2]
[394085341,1763256644999,-300.0,0.00017829,2]
[394085342,1763256645009,-300.0,0.00017832,2]
[394085343,1763256645019,-1000.0,0.00017833,2]
[394085344,1763256645028,-812.63,0.00017834,2]
[394085345,1763256645174,-300.0,0.00017834,2]
[394085346,1763256645185,-300.0,0.00017836,2]
[394085347,1763256645194,-300.0,0.0001784,2]
[394085348,1763256645204,-300.0,0.00017842,2]
[394085349,1763256645213,-1000.0,0.00017842,2]
[394085350,1763256645222,-300.0,0.00017842,2]
[394085351,1763256645231,-1000.0,0.00017844,2]
[394085352,1763256645241,-11132.90450368,0.00017844,2]
[394085353,1763256645250,-1000.0,0.00017852,2]
[394085354,1763256645259,-300.0,0.00017852,2]
[394085355,1763256645269,-300.0,0.00017853,2]
[394085356,1763256645278,-300.0,0.00017853,2]
[394085357,1763256645287,-300.0,0.00017853,2]
[394085358,1763256645300,-1000.0,0.00017853,2]
[394085359,1763256645310,-300.0,0.00017855,2]
[394085360,1763256645319,-300.0,0.00017857,2]
[394085361,1763256645329,-300.0,0.00017859,2]
[394085362,1763256645338,-300.0,0.00017861,2]
[394085363,1763256645347,-300.0,0.00017861,2]
[394085364,1763256645357,-300.0,0.00017862,2]
[394085365,1763256645366,-1000.0,0.00017864,2]
[394085366,1763256645377,-2970.0,0.00017866,2]
[394085367,1763256645386,-300.0,0.00017867,2]
[394085368,1763256645395,-300.0,0.00017869,2]
[394085369,1763256645405,-150.0,0.0001787,2]
[394085370,1763256645415,-300.0,0.0001787,2]
[394085371,1763256645425,-300.0,0.00017872,2]
[394085372,1763256645434,-300.0,0.00017876,2]
[394085373,1763256645443,-300.0,0.00017882,2]
[394085374,1763256645452,-300.0,0.00017884,2]
[394085375,1763256645462,-300.0,0.00017885,2]
[394085376,1763256645471,-150.0,0.00017886,2]
[394085377,1763256645481,-150.0,0.00017887,2]
[394085378,1763256645490,-300.0,0.00017887,2]
[394085379,1763256645499,-300.0,0.00017888,2]
[394085380,1763256645509,-300.0,0.00017891,2]
[394085381,1763256645518,-300.0,0.000179,6]
[394085382,1763256645528,-300.0,0.00017904,2]
[394085383,1763256645537,-300.0,0.00017904,2]
[394085384,1763256645546,-1000.0,0.00017904,2]
[394085385,1763256645556,-300.0,0.00017904,2]
[394085386,1763256645565,-1000.0,0.00017909,2]
[394085387,1763256645575,-300.0,0.00017912,2]
[394085388,1763256645585,-300.0,0.00017914,2]
[394085389,1763256645594,-300.0,0.00017916,2]
[394085390,1763256645603,-246.3701587,0.00017916,2]
[394085391,1763256645612,-9475.46031088,0.00017918,2]
[394085392,1763256645622,-7872.75518041,0.00017918,2]
[394085393,1763256645632,-300.0,0.00017919,2]
[394085394,1763256645642,-300.0,0.0001792,2]
[394085395,1763256645655,-1000.0,0.00017921,2]
[394085396,1763256645664,-215.33,0.00017926,2]
[394085397,1763256645675,-300.0,0.00017926,2]
[394085398,1763256645684,-300.0,0.00017926,2]
[394085399,1763256645694,-151.0,0.00017926,2]
[394085400,1763256645703,-595.37131296,0.00017926,2]
[394085401,1763256645714,-151.0,0.00017926,2]
[394085402,1763256645723,-151.0,0.00017926,2]
[394085403,1763256645732,-1000.0,0.00017945,2]
[394085404,1763256645742,-1000.0,0.00017956,2]
[394085405,1763256645751,-1000.0,0.00017959,2]
[394085406,1763256645761,-300.0,0.00017963,2]
[394085407,1763256645770,-2084.0,0.00017969,2]
[394085408,1763256645780,-300.0,0.00017971,2]
[394085409,1763256645790,-18677.0,0.00017973,2]
[394085410,1763256645799,-163.98407721,0.00017973,2]
[394085411,1763256645808,-291.00927523,0.00017978,2]
[394085412,1763256645819,-2970.0,0.00017986,2]
[394085413,1763256645828,-300.0,0.00017986,2]
[394085414,1763256645838,-300.0,0.00017989,2]
[394085415,1763256645847,-150.0,0.00017993,2]
[394085416,1763256645856,-151.0,0.00017996,2]
[394085417,1763256645865,-151.0,0.00017996,2]
[394085418,1763256645875,-151.0,0.00017996,2]
[394085419,1763256645884,-156.312673,0.00017996,2]
[394085420,1763256645893,-151.0,0.00017996,2]
[394085421,1763256645902,-151.0,0.00017996,2]
[394085422,1763256645911,-154.381413,0.00017996,2]
[394085423,1763256645921,-151.0,0.00017996,2]
[394085424,1763256645930,-151.0,0.00017996,2]
[394085425,1763256645939,-151.0,0.00017996,2]
[394085426,1763256645948,-151.0,0.00017996,2]
[394085427,1763256645957,-154.922288,0.00017996,2]
[394085428,1763256645966,-151.0,0.00017996,2]
[394085429,1763256645975,-151.0,0.00017996,2]
[394085430,1763256645985,-151.0,0.00017996,2]
[394085431,1763256645994,-151.0,0.00017996,2]
[394085432,1763256646003,-151.0,0.00017996,2]
[394085433,1763256646012,-151.0,0.00017996,2]
[394085434,1763256646021,-491.038185,0.00017996,2]
[394085435,1763256646030,-491.038185,0.00017996,2]
[394085436,1763256646040,-491.038185,0.00017996,2]
[394085437,1763256646050,-491.038185,0.00017996,2]
[394085438,1763256646060,-154.557523,0.00017996,2]
[394085439,1763256646069,-151.0,0.00017996,2]
[394085440,1763256646078,-151.0,0.00017996,2]
[394085441,1763256646087,-151.0,0.00017996,2]
[394085442,1763256646097,-151.0,0.00017996,2]
[394085443,1763256646106,-151.0,0.00017996,2]
[394085444,1763256646115,-151.0,0.00017996,2]
[394085445,1763256646125,-151.0,0.00017996,2]
[394085446,1763256646134,-513.101966,0.00017996,2]
[394085448,1763256646144,-513.101966,0.00017996,2]
[394085449,1763256646154,-513.101966,0.00017996,2]
[394085450,1763256646163,-513.101966,0.00017996,2]
[394085453,1763256646173,-151.0,0.00017996,2]
[394085455,1763256646182,-151.0,0.00017996,2]
[394085457,1763256646192,-151.0,0.00017996,2]
[394085459,1763256646201,-266.029318,0.00017996,2]
[394085460,1763256646212,-224.069189,0.00017996,2]
[394085461,1763256646222,-224.069189,0.00017996,2]
[394085462,1763256646233,-224.069189,0.00017996,2]
[394085463,1763256646242,-151.0,0.00017996,2]
[394085464,1763256646252,-224.069189,0.00017996,2]
[394085465,1763256646261,-151.0,0.00017996,2]
[394085466,1763256646270,-424.860105,0.00017996,2]
[394085467,1763256646279,-151.0,0.00017996,2]
[394085468,1763256646289,-424.860105,0.00017996,2]
[394085469,1763256646301,-151.0,0.00017996,2]
[394085470,1763256646311,-424.860105,0.00017996,2]
[394085471,1763256646320,-151.0,0.00017996,2]
[394085472,1763256646330,-424.860105,0.00017996,2]
[394085473,1763256646339,-151.0,0.00017996,2]
[394085474,1763256646349,-151.0,0.00017996,2]
[394085475,1763256646358,-151.0,0.00017996,2]
[394085476,1763256646368,-151.0,0.00017996,2]
[394085477,1763256646378,-151.0,0.00017996,2]
[394085478,1763256646387,-151.0,0.00017996,2]
[394085479,1763256646396,-151.0,0.00017996,2]
[394085480,1763256646405,-151.0,0.00017996,2]
[394085481,1763256646414,-151.0,0.00017996,2]
[394085482,1763256646424,-151.0,0.00017996,2]
[394085483,1763256646433,-151.0,0.00017996,2]
[394085484,1763256646442,-151.0,0.00017996,2]
[394085485,1763256646452,-151.0,0.00017996,2]
[394085486,1763256646461,-151.0,0.00017996,2]
[394085487,1763256646470,-151.0,0.00017996,2]
[394085488,1763256646480,-151.0,0.00017996,2]
[394085489,1763256646489,-151.0,0.00017996,2]
[394085490,1763256646498,-151.0,0.00017996,2]
[394085491,1763256646507,-151.0,0.00017996,2]
[394085492,1763256646516,-151.0,0.00017996,2]
[394085493,1763256646526,-151.0,0.00017996,2]
[394085494,1763256646535,-151.0,0.00017996,2]
[394085495,1763256646544,-158.847967,0.00017996,2]
[394085496,1763256646554,-151.0,0.00017996,2]
[394085497,1763256646564,-151.0,0.00017996,2]
[394085498,1763256646574,-167.083598,0.00017996,2]
[394085499,1763256646583,-317.316325,0.00017996,2]
[394085500,1763256646593,-317.316325,0.00017996,2]
[394085501,1763256646602,-317.316325,0.00017996,2]
[394085502,1763256646611,-317.316325,0.00017996,2]
[394085503,1763256646620,-151.0,0.00017996,2]
[394085504,1763256646630,-151.0,0.00017996,2]
[394085505,1763256646639,-156.39787,0.00017996,2]
[394085506,1763256646648,-151.0,0.00017996,2]
[394085507,1763256646657,-151.0,0.00017996,2]
[394085508,1763256646667,-151.0,0.00017996,2]
[394085509,1763256646676,-151.0,0.00017996,2]
[394085510,1763256646686,-151.0,0.00017996,2]
[394085511,1763256646695,-159.140327,0.00017996,2]
[394085512,1763256646704,-151.0,0.00017996,2]
[394085513,1763256646713,-213.537376,0.00017996,2]
[394085514,1763256646722,-151.0,0.00017996,2]
[394085515,1763256646732,-151.0,0.00017996,2]
[394085516,1763256646740,-151.0,0.00017996,2]
[394085517,1763256646750,-151.0,0.00017996,2]
[394085518,1763256646759,-151.0,0.00017996,2]
[394085519,1763256646768,-151.0,0.00017996,2]
[394085520,1763256646778,-151.0,0.00017996,2]
[394085521,1763256646787,-151.0,0.00017996,2]
[394085522,1763256646797,-151.0,0.00017996,2]
[394085523,1763256646807,-151.0,0.00017996,2]
[394085524,1763256646816,-151.0,0.00017996,2]
[394085525,1763256646826,-151.0,0.00017996,2]
[394085526,1763256646835,-151.0,0.00017996,2]
[394085527,1763256646845,-151.0,0.00017996,2]
[394085528,1763256646854,-151.0,0.00017996,2]
[394085529,1763256646864,-151.0,0.00017996,2]
[394085530,1763256646872,-175.174058,0.00017996,2]
[394085531,1763256646882,-151.0,0.00017996,2]
[394085532,1763256646891,-154.482396,0.00017996,2]
[394085533,1763256646900,-154.482396,0.00017996,2]
[394085534,1763256646908,-151.0,0.00017996,2]
[394085535,1763256646918,-154.482396,0.00017996,2]
[394085536,1763256646927,-154.482396,0.00017996,2]
[394085537,1763256646936,-151.0,0.00017996,2]
[394085538,1763256646945,-151.0,0.00017996,2]
[394085539,1763256646955,-151.0,0.00017996,2]
[394085540,1763256646963,-151.0,0.00017996,2]
[394085541,1763256646972,-301.460112,0.00017996,2]
[394085542,1763256646981,-168.382217,0.00017996,2]
[394085543,1763256646990,-301.460112,0.00017996,2]
[394085544,1763256646999,-151.0,0.00017996,2]
[394085545,1763256647008,-168.382217,0.00017996,2]
[394085546,1763256647017,-301.460112,0.00017996,2]
[394085547,1763256647026,-168.382217,0.00017996,2]
[394085548,1763256647035,-301.460112,0.00017996,2]
[394085549,1763256647044,-168.382217,0.00017996,2]
[394085550,1763256647053,-227.883788,0.00017996,2]
[394085551,1763256647062,-227.883788,0.00017996,2]
[394085552,1763256647071,-151.0,0.00017996,2]
[394085553,1763256647081,-227.883788,0.00017996,2]
[394085554,1763256647091,-151.0,0.00017996,2]
[394085555,1763256647100,-227.883788,0.00017996,2]
[394085557,1763256647109,-151.0,0.00017996,2]
[394085559,1763256647118,-248.061885,0.00017996,2]
[394085561,1763256647127,-151.0,0.00017996,2]
[394085563,1763256647138,-248.061885,0.00017996,2]
[394085565,1763256647147,-184.448295,0.00017996,2]
[394085566,1763256647155,-151.0,0.00017996,2]
[394085567,1763256647164,-248.061885,0.00017996,2]
[394085568,1763256647174,-315.919158,0.00017996,2]
[394085569,1763256647183,-248.061885,0.00017996,2]
[394085570,1763256647192,-315.919158,0.00017996,2]
[394085571,1763256647201,-151.0,0.00017996,2]
[394085572,1763256647210,-315.919158,0.00017996,2]
[394085573,1763256647219,-151.0,0.00017996,2]
[394085574,1763256647228,-315.919158,0.00017996,2]
[394085575,1763256647237,-151.0,0.00017996,2]
[394085576,1763256647245,-168.677934,0.00017996,2]
[394085577,1763256647254,-168.677934,0.00017996,2]
[394085578,1763256647263,-168.677934,0.00017996,2]
[394085579,1763256647271,-168.677934,0.00017996,2]
[394085580,1763256647281,-182.44842,0.00017996,2]
[394085581,1763256647290,-151.0,0.00017996,2]
[394085582,1763256647301,-151.0,0.00017996,2]
[394085583,1763256647310,-151.0,0.00017996,2]
[394085584,1763256647319,-151.0,0.00017996,2]
[394085585,1763256647328,-151.0,0.00017996,2]
[394085586,1763256647338,-151.0,0.00017996,2]
[394085587,1763256647347,-163.102772,0.00017996,2]
[394085588,1763256647356,-328.609049,0.00017996,2]
[394085589,1763256647366,-328.609049,0.00017996,2]
[394085590,1763256647376,-328.609049,0.00017996,2]
[394085591,1763256647385,-328.609049,0.00017996,2]
[394085592,1763256647394,-300.0,0.00017998,2]
[394085593,1763256647403,-500.0,0.00017999,2]
[394085594,1763256647412,-500.0,0.00017999,2]
[394085595,1763256647422,-175713.66862588,0.00018,2]
[394085596,1763256647893,-22000.0,0.00018,2]
[394085597,1763256648470,-255.75,0.00016155,2]
[394085598,1763256648480,-244.25,0.00016155,2]
[394085599,1763256648490,-500.0,0.00016155,2]
[394085600,1763256648499,-500.0,0.00016155,2]
[394085601,1763256648508,-500.0,0.00016155,2]
[394085602,1763256648518,-601.71902346,0.00016155,2]
[394085603,1763256648527,-678.37831731,0.00017836,2]
[394085604,1763256648537,-171.0798364,0.00017904,2]
[394085605,1763256648547,-6712.47282283,0.00018,2]
[394085606,1763256663076,438.24,0.0003,120]
[394085617,1763256744747,-500.0,0.00015594,2]
[394085752,1763256857621,10000.0,0.00030137,120]
[394085753,1763256867988,10000.0,0.00030137,120]
[394085754,1763256883423,557.33,0.00030137,120]
[394085759,1763257004478,150.5,0.0002619,120]
[394085760,1763257004952,150.5,0.0002618,120]
[394085761,1763257005401,277.42,0.0002617,120]
[394085766,1763257090337,341.89961017,0.000301,120]
[394085767,1763257105765,726.67090915,0.0003013,120]
[394085833,1763257253204,251.14965566,0.00030137,120]
[394085834,1763257258296,155.11,0.000131,2]
[394085835,1763257258704,155.11,0.00015283,2]
[394085899,1763257451375,166.66,0.00014691,2]
[394085900,1763257451586,166.66,0.00015,2]
[394085901,1763257451784,166.66,0.0001531,2]
[394085903,1763257534737,150.0,0.00015401,2]
[394085904,1763257534970,150.0,0.00015401,120]
[394085909,1763257639406,200.0,0.000159,5]
[394085911,1763257741457,150.0,0.00030136,120]
[394085921,1763257831643,-166.66,0.00015619,2]
[394085922,1763257831657,-302.49450911,0.00015634,2]
[394085923,1763257831670,-1798.24944956,0.00015634,2]
[394085924,1763257831683,-195.0,0.00015648,2]
[394085925,1763257831695,-300.0,0.00015677,2]
[394085926,1763257831709,-1200.0,0.00015677,2]
[394085927,1763257831721,-270.0,0.00015678,2]
[394085928,1763257831734,-12234.03,0.00015679,2]
[394085929,1763257831750,-195.0,0.00015682,2]
[394085930,1763257831763,-1655.955,0.00015717,2]
[394085931,1763257831775,-188.21775021,0.00015717,2]
[394085932,1763257831789,-1000.0,0.00015735,2]
[394085933,1763257831802,-2522.0,0.00015863,2]
[394085934,1763257831815,-166.66,0.00015928,2]
[394085935,1763257831827,-2827.9243,0.00015938,2]
[394085936,1763257831841,-5792.3129,0.00015938,2]
[394085937,1763257831851,-300.0,0.00015972,2]
[394085938,1763257831861,-297.20776011,0.00015973,2]
[394085939,1763257831870,-350.19361284,0.00015973,2]
[394085940,1763257831879,-200.0,0.00016028,2]
[394085941,1763257831888,-203.34536545,0.00016028,2]
[394085942,1763257831898,-151.0,0.00016028,2]
[394085948,1763257831908,-151.0,0.00016028,2]
[394085949,1763257832196,-151.0,0.00016028,2]
[394085950,1763257832210,-151.0,0.00016028,2]
[394085951,1763257832219,-151.0,0.00016028,2]
[394085952,1763257832228,-151.0,0.00016028,2]
[394085953,1763257832237,-151.0,0.00016028,2]
[394085954,1763257832246,-151.0,0.00016028,2]
[394085955,1763257832256,-151.0,0.00016028,2]
[394085956,1763257832265,-151.0,0.00016028,2]
[394085957,1763257832273,-151.0,0.00016028,2]
[394085958,1763257832282,-500.0,0.00016037,2]
[394085959,1763257832291,-500.0,0.00016037,2]
[394085960,1763257832300,-500.0,0.00016037,2]
[394085961,1763257832308,-417.68800886,0.00016037,2]
[394085962,1763257832318,-500.0,0.00016037,2]
[394085963,1763257832326,-500.0,0.00016037,2]
[394085964,1763257832335,-509.09263328,0.00016037,2]
[394085965,1763257832345,-500.0,0.00016037,2]
[394085966,1763257832355,-500.0,0.00016037,2]
[394085967,1763257832364,-500.0,0.00016037,2]
[394085968,1763257832373,-210.55076555,0.00016037,2]
[394085969,1763257832382,-500.0,0.00016037,2]
[394085970,1763257832391,-500.0,0.00016037,2]
[394085971,1763257832400,-500.0,0.00016037,2]
[394085972,1763257832409,-500.0,0.00016037,2]
[394085973,1763257832418,-500.0,0.00016037,2]
[394085974,1763257832426,-500.0,0.00016037,2]
[394085975,1763257832436,-500.0,0.00016037,2]
[394085976,1763257832444,-500.0,0.00016037,2]
[394085977,1763257832453,-500.0,0.00016037,2]
[394085978,1763257832462,-500.0,0.00016037,2]
[394085979,1763257832471,-500.0,0.00016037,2]
[394085980,1763257832480,-500.0,0.00016037,2]
[394085981,1763257832489,-500.0,0.00016037,2]
[394085982,1763257832498,-500.0,0.00016037,2]
[394085983,1763257832507,-500.0,0.00016037,2]
[394085984,1763257832516,-244.2716029,0.00016037,2]
[394085985,1763257832525,-500.0,0.00016037,2]
[394085986,1763257832534,-500.0,0.00016037,2]
[394085987,1763257832543,-500.0,0.00016037,2]
[394085988,1763257832552,-500.0,0.00016037,2]
[394085989,1763257832561,-500.0,0.00016037,2]
[394085990,1763257832571,-500.0,0.00016037,2]
[394085991,1763257832580,-500.0,0.00016037,2]
[394085992,1763257832589,-500.0,0.00016037,2]
[394085993,1763257832598,-188.93162277,0.00016037,2]
[394085994,1763257832608,-589.21457386,0.00016037,2]
[394085995,1763257832618,-501.96899946,0.00016073,2]
[394085996,1763257832627,-500.0,0.00016073,2]
[394085997,1763257832636,-501.93935097,0.00016073,2]
[394085998,1763257832645,-20262.03952979,0.00016178,2]
[394085999,1763257832654,-150.0,0.000162,2]
[394086000,1763257832663,-166.66,0.00016238,2]
[394086001,1763257832672,-150.0,0.0001626,2]
[394086002,1763257832680,-150.0,0.0001632,2]
[394086003,1763257832689,-150.0,0.0001638,2]
[394086004,1763257832698,-2622.75,0.00016438,2]
[394086005,1763257832707,-150.0,0.0001644,2]
[394086006,1763257832715,-150.0,0.000165,2]
[394086007,1763257832724,-518.587662,0.00016517,2]
[394086008,1763257832733,-150.0,0.0001656,2]
[394086009,1763257832742,-150.0,0.0001662,2]
[394086010,1763257832751,-508.60499988,0.00016621,2]
[394086011,1763257832762,-151.0,0.00016649,2]
[394086012,1763257832771,-151.0,0.00016649,2]
[394086013,1763257832780,-600.0,0.00016661,2]
[394086014,1763257832789,-150.0,0.0001668,2]
[394086015,1763257832797,-5914.75258916,0.00016694,2]
[394086016,1763257832807,-1193.07019618,0.00016738,2]
[394086017,1763257832816,-150.0,0.0001674,2]
[394086018,1763257832824,-7250.01566088,0.00016741,2]
[394086019,1763257832836,-8953.49433912,0.00016741,2]
[394086020,1763257832845,-233.08516483,0.00016794,2]
[394086021,1763257832855,-151.0,0.00016794,2]
[394086022,1763257832865,-574.12855637,0.00016794,2]
[394086023,1763257832873,-277.35679052,0.00016794,2]
[394086024,1763257832882,-250.0,0.00016794,2]
[394086025,1763257832891,-250.0,0.00016794,2]
[394086026,1763257832901,-500.0,0.00016794,2]
[394086027,1763257832910,-250.0,0.00016794,2]
[394086028,1763257832918,-250.0,0.00016794,2]
[394086029,1763257832927,-500.0,0.00016794,2]
[394086030,1763257832938,-250.0,0.00016794,2]
[394086031,1763257832947,-263.55863032,0.00016794,2]
[394086032,1763257832955,-500.0,0.00016794,2]
[394086033,1763257832964,-250.0,0.00016794,2]
[394086034,1763257832973,-500.0,0.00016794,2]
[394086035,1763257832982,-151.0,0.00016794,2]
[394086036,1763257832990,-250.0,0.00016794,2]
[394086037,1763257833000,-500.0,0.00016794,2]
[394086038,1763257833009,-151.0,0.00016794,2]
[394086039,1763257833018,-250.0,0.00016794,2]
[394086040,1763257833027,-500.0,0.00016794,2]
[394086041,1763257833036,-151.0,0.00016794,2]
[394086042,1763257833045,-151.0,0.00016794,2]
[394086043,1763257833054,-250.0,0.00016794,2]
[394086044,1763257833062,-500.0,0.00016794,2]
[394086045,1763257833071,-151.0,0.00016794,2]
[394086046,1763257833080,-250.0,0.00016794,2]
[394086047,1763257833089,-500.0,0.00016794,2]
[394086048,1763257833098,-500.0,0.00016794,2]
[394086049,1763257833107,-250.0,0.00016794,2]
[394086050,1763257833116,-151.0,0.00016794,2]
[394086051,1763257833125,-250.0,0.00016794,2]
[394086052,1763257833133,-266.34691367,0.00016794,2]
[394086053,1763257833143,-151.0,0.00016794,2]
[394086054,1763257833151,-250.0,0.00016794,2]
[394086055,1763257833160,-151.0,0.00016794,2]
[394086056,1763257833169,-151.0,0.00016794,2]
[394086057,1763257833178,-151.0,0.00016794,2]
[394086058,1763257833189,-151.0,0.00016794,2]
[394086059,1763257833198,-154.26100194,0.00016794,2]
[394086060,1763257833207,-250.0,0.00016794,2]
[394086061,1763257833216,-250.0,0.00016794,2]
[394086062,1763257833225,-250.0,0.00016794,2]
[394086063,1763257833234,-250.0,0.00016794,2]
[394086064,1763257833243,-250.0,0.00016794,2]
[394086065,1763257833252,-500.0,0.00016794,2]
[394086066,1763257833261,-250.0,0.00016794,2]
[394086067,1763257833270,-500.0,0.00016794,2]
[394086068,1763257833279,-500.0,0.00016794,2]
[394086069,1763257833288,-250.0,0.00016794,2]
[394086070,1763257833296,-151.0,0.00016794,2]
[394086071,1763257833306,-500.0,0.00016794,2]
[394086072,1763257833314,-250.0,0.00016794,2]
[394086073,1763257833323,-500.0,0.00016794,2]
[394086074,1763257833332,-250.0,0.00016794,2]
[394086075,1763257833341,-250.0,0.00016794,2]
[394086076,1763257833350,-500.0,0.00016794,2]
[394086077,1763257833359,-250.0,0.00016794,2]
[394086078,1763257833368,-250.0,0.00016794,2]
[394086079,1763257833376,-500.0,0.00016794,2]
[394086080,1763257833386,-250.0,0.00016794,2]
[394086081,1763257833395,-250.0,0.00016794,2]
[394086082,1763257833404,-250.0,0.00016794,2]
[394086083,1763257833413,-500.0,0.00016794,2]
[394086084,1763257833422,-250.0,0.00016794,2]
[394086085,1763257833431,-250.0,0.00016794,2]
[394086086,1763257833440,-500.0,0.00016794,2]
[394086087,1763257833449,-250.0,0.00016794,2]
[394086088,1763257833458,-250.0,0.00016794,2]
[394086089,1763257833467,-500.0,0.00016794,2]
[394086090,1763257833475,-250.0,0.00016794,2]
[394086091,1763257833484,-250.0,0.00016794,2]
[394086092,1763257833493,-591.23609277,0.00016794,2]
[394086093,1763257833503,-250.0,0.00016794,2]
[394086094,1763257833512,-250.0,0.00016794,2]
[394086095,1763257833521,-250.0,0.00016794,2]
[394086096,1763257833530,-250.0,0.00016794,2]
[394086097,1763257833539,-250.0,0.00016794,2]
[394086098,1763257833547,-250.0,0.00016794,2]
[394086099,1763257833556,-250.0,0.00016794,2]
[394086100,1763257833565,-250.0,0.00016794,2]
[394086101,1763257833574,-250.0,0.00016794,2]
[394086102,1763257833582,-250.0,0.00016794,2]
[394086103,1763257833591,-250.0,0.00016794,2]
[394086104,1763257833600,-250.0,0.00016794,2]
[394086105,1763257833609,-151.0,0.00016794,2]
[394086106,1763257833618,-250.0,0.00016794,2]
[394086107,1763257833626,-151.0,0.00016794,2]
[394086108,1763257833635,-250.0,0.00016794,2]
[394086109,1763257833643,-151.0,0.00016794,2]
[394086110,1763257833653,-151.0,0.00016794,2]
[394086111,1763257833662,-250.0,0.00016794,2]
[394086112,1763257833671,-151.0,0.00016794,2]